bitfinex/quotes_BTCUSD_20240602
["timestamp","ask_amount","ask_price","bid_price","bid_amount"]
[1717345691172,0.0935,68090.0,68086.0,0.001]
[1717345691572,0.13150485,68090.0,68086.0,0.001]
[1717345691897,0.03800485,68089.0,68086.0,0.001]
[1717345692314,0.03800485,68087.0,68086.0,0.002]
[1717345692512,0.26630485,68087.0,68086.0,0.002]
[1717345692856,0.26630485,68087.0,68086.0,0.001]
[1717345693161,0.0772,68086.0,68080.0,0.196185]
[1717345693609,0.0772,68086.0,68081.0,0.1524205]
[1717345693812,0.0772,68086.0,68082.0,0.1524205]
[1717345694018,0.0772,68086.0,68083.0,0.1524205]
[1717345694222,0.0772,68086.0,68080.0,0.196185]
[1717345694424,0.0772,68086.0,68081.0,0.15242057]
[1717345694425,0.03800485,68085.0,68081.0,0.15242057]
[1717345694632,0.11520485,68086.0,68082.0,0.15242057]
[1717345694835,0.03800485,68085.0,68083.0,0.15242057]
[1717345695040,0.03800485,68085.0,68084.0,0.15242057]
[1717345695626,0.11520485,68085.0,68080.0,0.197185]
[1717345695857,0.11520485,68085.0,68081.0,0.15942628]
[1717345696029,0.11520485,68085.0,68082.0,0.15242628]
[1717345696285,0.12420485,68085.0,68084.0,0.001]
[1717345696724,0.11820485,68085.0,68080.0,0.196185]
[1717345696954,0.03800485,68084.0,68081.0,0.15242919]
[1717345697198,0.03800485,68084.0,68082.0,0.15242919]
[1717345697417,0.03800485,68084.0,68083.0,0.15242919]
[1717345697657,0.03800485,68084.0,68080.0,0.197185]
[1717345697909,0.03800485,68084.0,68081.0,0.15242868]
[1717345698090,0.03800485,68084.0,68082.0,0.15242868]
[1717345698326,0.11820485,68085.0,68083.0,0.15242868]
[1717345698518,0.11520485,68085.0,68084.0,0.15242818]
[1717345698662,0.12420485,68085.0,68084.0,0.15342818]
[1717345698888,0.11620485,68085.0,68084.0,0.15242818]
[1717345699561,0.11520485,68085.0,68084.0,0.15242818]
[1717345700286,0.12420485,68085.0,68084.0,0.15342818]
[1717345700472,0.12720485,68085.0,68084.0,0.15342818]
[1717345700825,0.12720485,68085.0,68084.0,0.15793291]
[1717345701508,0.12720485,68085.0,68084.0,0.15693291]
[1717345701509,0.27218559,68085.0,68084.0,0.15693291]
[1717345701707,0.26918559,68085.0,68084.0,0.15693291]
[1717345701912,0.27518559,68085.0,68084.0,0.15242818]
[1717345702271,0.27518559,68085.0,68084.0,0.15693569]
[1717345702472,0.27818559,68085.0,68084.0,0.15793569]
[1717345702998,0.28218559,68085.0,68084.0,0.15793569]
[1717345703198,0.28218559,68085.0,68084.0,0.15993569]
[1717345703199,0.29118559,68085.0,68084.0,0.15993569]
[1717345703399,0.29118559,68085.0,68084.0,0.15542818]
[1717345703515,0.29118559,68085.0,68084.0,0.15993569]
[1717345704121,0.5838385,68085.0,68084.0,0.15993569]
[1717345704367,0.5838385,68085.0,68084.0,0.15542818]
[1717345704774,0.5838385,68085.0,68084.0,0.003]
[1717345705000,0.5838385,68085.0,68084.0,0.00751366]
[1717345705212,0.5838385,68085.0,68084.0,0.003]
[1717345705756,0.6331385,68085.0,68084.0,0.003]
[1717345711344,0.6201385,68085.0,68084.0,0.002]
[1717345711554,0.6471385,68085.0,68084.0,0.004]
[1717345711753,0.6381385,68085.0,68084.0,0.002]
[1717345712164,0.6681385,68085.0,68084.0,0.005]
[1717345718976,0.6188385,68085.0,68084.0,0.005]
[1717345719389,0.61595776,68085.0,68084.0,0.005]
[1717345720120,0.46485776,68085.0,68084.0,0.005]
[1717345720323,0.24187985,68085.0,68084.0,0.005]
[1717345720661,0.24187985,68085.0,68084.0,0.00937439]
[1717345721518,0.057,68085.0,68084.0,0.00937439]
[1717345722023,0.09500485,68085.0,68084.0,0.005]
[1717345722507,0.09500485,68085.0,68084.0,0.00937439]
[1717345722711,0.09500485,68085.0,68084.0,0.005]
[1717345722955,0.09500485,68085.0,68084.0,0.00937439]
[1717345724326,0.057,68085.0,68084.0,0.00937439]
[1717345724525,0.057,68085.0,68084.0,0.005]
[1717345724727,0.057,68085.0,68084.0,0.00937439]
[1717345727922,0.09500485,68085.0,68084.0,0.005]
[1717345731349,0.09788559,68085.0,68084.0,0.005]
[1717345731964,0.09500485,68085.0,68084.0,0.005]
[1717345733173,0.09788559,68085.0,68084.0,0.005]
[1717345734187,0.09500485,68085.0,68084.0,0.005]
[1717345734417,0.09788559,68085.0,68084.0,0.005]
[1717345737097,0.09788559,68085.0,68084.0,0.00936814]
[1717345737993,0.75052745,68085.0,68084.0,0.005]
[1717345739418,0.6776385,68085.0,68084.0,0.005]
[1717345741181,0.7776385,68085.0,68084.0,0.005]
[1717345741776,0.7283385,68085.0,68084.0,0.005]
[1717345742356,0.7283385,68085.0,68084.0,0.002]
[1717345742357,0.6983385,68085.0,68084.0,0.002]
[1717345742786,0.7343385,68085.0,68084.0,0.003]
[1717345743557,0.7073385,68085.0,68084.0,0.001]
[1717345743763,0.7393385,68085.0,68084.0,0.002]
[1717345746637,1.0330885,68085.0,68084.0,0.002]
[1717345749706,1.0330885,68085.0,68084.0,8.002]
[1717345750092,1.0330885,68085.0,68084.0,8.00688128]
[1717345755560,0.49865776,68085.0,68084.0,8.00688128]
[1717345755782,0.5015385,68085.0,68084.0,8.00688128]
[1717345755999,0.49865776,68085.0,68084.0,8.00688128]
[1717345756628,0.5015385,68085.0,68084.0,8.00688128]
[1717345759200,0.49865776,68085.0,68084.0,8.00688128]
[1717345759411,0.5015385,68085.0,68084.0,8.00688128]
[1717345759589,0.35287985,68085.0,68084.0,8.00688128]
[1717345760786,0.35576059,68085.0,68084.0,8.00688128]
[1717345764257,0.25287985,68085.0,68084.0,8.00688128]
[1717345764661,0.25576059,68085.0,68084.0,8.00688128]
[1717345766720,0.33666059,68085.0,68084.0,8.00688128]
[1717345777508,0.4824385,68085.0,68084.0,8.00688128]
[1717345800746,0.4824385,68085.0,68084.0,0.00688128]
[1717345801361,0.5317385,68085.0,68084.0,0.00688128]
[1717345801571,0.53155021,68085.0,68084.0,0.00688128]
[1717345802368,0.48225021,68085.0,68084.0,0.00688128]
[1717345804965,0.40927912,68085.0,68084.0,0.00688128]
[1717345806899,0.17972047,68085.0,68084.0,0.20068128]
[1717345807104,0.068,68085.0,68084.0,0.24998128]
[1717345807276,0.068,68085.0,68084.0,0.20068128]
[1717345807517,0.068,68085.0,68084.0,0.35311848]
[1717345810328,0.068,68085.0,68084.0,0.35310987]
[1717345810742,0.068,68085.0,68084.0,0.40240987]
[1717345811144,0.068,68085.0,68084.0,0.44647397]
[1717345811594,0.00943801,68093.0,68084.0,0.44447397]
[1717345811763,0.15521592,68093.0,68086.0,0.0342]
[1717345811978,0.15521592,68093.0,68087.0,0.30752859]
[1717345812176,0.15521592,68093.0,68088.0,0.15242859]
[1717345812436,0.15521592,68093.0,68087.0,0.1551]
[1717345812638,0.15521592,68093.0,68088.0,0.15241756]
[1717345812796,0.15521592,68093.0,68087.0,0.1551]
[1717345812999,0.15521592,68093.0,68088.0,0.15241779]
[1717345813204,0.15521592,68093.0,68087.0,0.1551]
[1717345813205,0.15921592,68093.0,68087.0,0.1551]
[1717345813405,0.15921592,68093.0,68088.0,0.15241797]
[1717345813608,0.15921592,68093.0,68087.0,0.1551]
[1717345813815,0.15921592,68093.0,68088.0,0.15241803]
[1717345814015,0.15921592,68093.0,68087.0,0.1551]
[1717345814218,0.15921592,68093.0,68088.0,0.15241792]
[1717345814417,0.15521592,68093.0,68087.0,0.1551]
[1717345814603,0.01543801,68093.0,68088.0,0.15341783]
[1717345814814,0.02443801,68093.0,68089.0,0.1893]
[1717345815020,0.01543801,68093.0,68089.0,0.1893]
[1717345815224,0.00943801,68093.0,68089.0,0.1893]
[1717345815426,0.02243801,68093.0,68089.0,0.1893]
[1717345815631,0.02443801,68093.0,68089.0,0.1893]
[1717345815865,0.02443801,68093.0,68089.0,0.18947679]
[1717345816482,0.02443801,68093.0,68089.0,0.19147679]
[1717345816684,0.04043801,68093.0,68089.0,0.19147679]
[1717345816892,0.03843801,68093.0,68089.0,0.19147679]
[1717345817357,0.04743801,68093.0,68089.0,0.19247679]
[1717345817594,0.04743801,68093.0,68090.0,0.0342]
[1717345817814,0.04743801,68093.0,68091.0,0.1551]
[1717345818235,0.04743801,68093.0,68092.0,0.23036]
[1717345818449,0.04743801,68093.0,68092.0,0.53785659]
[1717345818695,0.03843801,68093.0,68092.0,0.53785659]
[1717345818915,0.02143801,68093.0,68092.0,1.02941571]
[1717345819122,0.02143801,68093.0,68092.0,0.63784957]
[1717345819335,0.04343801,68093.0,68092.0,0.63784957]
[1717345819740,0.04343801,68093.0,68092.0,0.48854957]
[1717345819955,0.04643801,68093.0,68092.0,0.59583091]
[1717345820157,0.04643801,68093.0,68092.0,0.55184957]
[1717345820158,0.03443801,68093.0,68092.0,0.55184957]
[1717345820539,0.03443801,68093.0,68092.0,0.56584957]
[1717345820655,0.03843801,68093.0,68092.0,0.56584957]
[1717345821089,0.03843801,68093.0,68092.0,0.60983091]
[1717345821287,0.03843801,68093.0,68092.0,0.56584957]
[1717345823924,0.03843801,68093.0,68092.0,0.66517557]
[1717345824526,0.03843801,68093.0,68092.0,0.56517557]
[1717345825547,0.03843801,68093.0,68092.0,0.58290824]
[1717345827485,0.03843801,68093.0,68092.0,1.10618615]
[1717345827616,0.03843801,68093.0,68092.0,1.15016749]
[1717345827830,0.03843801,68093.0,68092.0,1.10618615]
[1717345828035,0.03843801,68093.0,68092.0,2.51190335]
[1717345828241,0.02353801,68093.0,68092.0,2.51190335]
[1717345828446,0.02353801,68093.0,68092.0,2.45326501]
[1717345828868,0.02353801,68093.0,68092.0,2.43920632]
[1717345829243,0.00943801,68097.0,68096.0,1.364454]
[1717345829466,0.00943801,68097.0,68096.0,2.63127732]
[1717345829675,0.00943801,68097.0,68096.0,2.24001368]
[1717345829888,0.00943801,68097.0,68096.0,2.14001368]
[1717345830304,0.00443801,68097.0,68096.0,2.28386573]
[1717345830717,0.00443801,68097.0,68096.0,2.24001368]
[1717345831341,0.00643801,68097.0,68096.0,2.32085503]
[1717345831964,0.00643801,68097.0,68096.0,2.35785503]
[1717345832641,0.00643801,68097.0,68096.0,2.00927073]
[1717345832876,0.00643801,68097.0,68096.0,2.31398813]
[1717345833074,0.00643801,68097.0,68096.0,2.00927073]
[1717345833488,0.00643801,68097.0,68096.0,1.99459054]
[1717345834931,0.00643801,68097.0,68096.0,2.29930816]
[1717345835264,0.00643801,68097.0,68096.0,1.99459054]
[1717345835871,0.00643801,68097.0,68096.0,2.29930931]
[1717345836270,0.00643801,68097.0,68096.0,2.29930773]
[1717345836679,0.00643801,68097.0,68096.0,2.39930351]
[1717345837935,0.00643801,68097.0,68096.0,2.24694646]
[1717345838134,0.00643801,68097.0,68096.0,2.3992998]
[1717345840025,0.00517701,68097.0,68096.0,2.3992998]
[1717345840421,0.00517701,68097.0,68096.0,2.42134166]
[1717345841721,0.00517701,68097.0,68096.0,2.3992998]
[1717345842166,0.00517701,68097.0,68096.0,2.42134166]
[1717345844086,0.00517701,68097.0,68096.0,2.3992998]
[1717345845385,0.00517701,68097.0,68096.0,2.4431168]
[1717345846027,0.00517701,68097.0,68096.0,2.3992998]
[1717345846235,0.00517701,68097.0,68096.0,2.6930028]
[1717345846443,0.00943801,68099.0,68098.0,1.206375]
[1717345846646,0.00943801,68099.0,68098.0,2.17638527]
[1717345846859,0.00943801,68109.0,68108.0,1.088627]
[1717345847076,0.00943801,68118.0,68108.0,1.088627]
[1717345847077,0.00943801,68118.0,68117.0,0.146806]
[1717345847498,0.00943801,68118.0,68117.0,0.50891744]
[1717345848115,0.00943801,68118.0,68117.0,0.3565641]
[1717345848322,0.00943801,68118.0,68117.0,0.50888712]
[1717345849374,0.00943801,68118.0,68117.0,0.50888713]
[1717345849798,0.01243801,68118.0,68117.0,0.50888713]
[1717345850877,0.03043801,68118.0,68117.0,0.50988713]
[1717345851616,0.01243801,68118.0,68117.0,0.50888713]
[1717345852186,0.01243801,68118.0,68117.0,0.49420694]
[1717345852564,0.01243801,68118.0,68117.0,0.49520694]
[1717345853938,0.01243801,68118.0,68117.0,0.44590694]
[1717345854145,0.24533801,68118.0,68117.0,0.30012903]
[1717345855298,0.24533801,68118.0,68117.0,0.30013833]
[1717345855710,0.24533801,68118.0,68117.0,0.34943833]
[1717345856288,0.24533801,68118.0,68117.0,0.34943997]
[1717345858147,0.24533801,68118.0,68117.0,0.3494408]
[1717345860287,0.24821875,68118.0,68117.0,0.3494408]
[1717345860484,0.24821875,68118.0,68117.0,0.3001408]
[1717345860685,0.24821875,68118.0,68117.0,0.1533348]
[1717345861093,0.24821875,68118.0,68117.0,0.001]
[1717345862217,0.44432275,68118.0,68117.0,0.001]
[1717345862905,0.59010066,68118.0,68117.0,0.001]
[1717345863101,0.146812,68114.0,68101.0,0.14684]
[1717345863253,0.07998074,68104.0,68102.0,0.15237254]
[1717345863454,0.07998074,68104.0,68103.0,0.15237254]
[1717345864083,0.23578074,68104.0,68094.0,0.01468019]
[1717345864289,0.0771,68101.0,68095.0,0.20167889]
[1717345864485,0.0771,68099.0,68096.0,0.15237889]
[1717345864765,0.0771,68099.0,68095.0,0.0493]
[1717345864905,0.0771,68099.0,68096.0,0.15239265]
[1717345865328,0.0771,68099.0,68095.0,0.0493]
[1717345865749,0.0771,68099.0,68094.0,0.01468019]
[1717345865968,0.0771,68099.0,68096.0,0.0493]
[1717345866190,0.08198074,68099.0,68096.0,0.0493]
[1717345866421,0.0791,68099.0,68096.0,0.0493]
[1717345866648,0.0771,68099.0,68096.0,0.0493]
[1717345867071,0.0791,68099.0,68096.0,0.0493]
[1717345867219,0.0811,68099.0,68096.0,0.0493]
[1717345867628,0.0791,68099.0,68097.0,0.00510278]
[1717345868015,0.0811,68099.0,68097.0,0.00510278]
[1717345868460,0.0791,68099.0,68097.0,0.00510278]
[1717345868739,0.002,68099.0,68098.0,0.59540544]
[1717345868922,0.002,68099.0,68098.0,0.67669631]
[1717345868923,0.004,68099.0,68098.0,0.67669631]
[1717345869361,0.002,68099.0,68098.0,0.67669631]
[1717345869576,0.002,68099.0,68098.0,0.44812579]
[1717345869796,0.004,68099.0,68098.0,0.6766813]
[1717345870028,0.002,68099.0,68098.0,0.6766813]
[1717345870239,0.1625,68107.0,68098.0,0.6766813]
[1717345870240,0.1625,68107.0,68099.0,0.146843]
[1717345870481,0.1625,68107.0,68106.0,0.0493]
[1717345870892,0.1625,68107.0,68106.0,0.05439399]
[1717345872163,0.1625,68107.0,68106.0,8.05439399]
[1717345872362,0.1645,68107.0,68106.0,8.05439399]
[1717345872536,0.1655,68107.0,68106.0,8.05439399]
[1717345872743,0.1635,68107.0,68106.0,8.05439399]
[1717345873031,0.1625,68107.0,68106.0,8.05439399]
[1717345873236,0.1645,68107.0,68106.0,8.05439399]
[1717345873442,0.1705,68107.0,68106.0,8.05439399]
[1717345874245,0.1705,68107.0,68106.0,8.00509399]
[1717345875618,0.1705,68107.0,68106.0,0.00509399]
[1717345876015,0.1705,68107.0,68103.0,0.0493]
[1717345876327,0.1705,68107.0,68104.0,0.00509571]
[1717345876990,0.1685,68107.0,68104.0,0.00509571]
[1717345877189,0.1625,68107.0,68104.0,0.00509571]
[1717345879454,0.1625,68107.0,68104.0,0.01009571]
[1717345880447,0.1625,68107.0,68104.0,1.01009571]
[1717345883978,0.1625,68107.0,68106.0,0.0493]
[1717345884182,0.1625,68107.0,68106.0,0.05439044]
[1717345884788,0.1625,68107.0,68106.0,0.00509044]
[1717345885429,0.1645,68107.0,68104.0,1.0493]
[1717345885634,0.1645,68107.0,68106.0,0.00509044]
[1717345885867,0.1705,68107.0,68105.0,0.0050913]
[1717345886082,0.08208074,68106.0,68105.0,0.0050913]
[1717345886296,0.23618074,68106.0,68105.0,0.0050913]
[1717345887372,0.23818074,68106.0,68105.0,0.0050913]
[1717345888915,0.23818074,68106.0,68105.0,0.0060913]
[1717345891195,0.002,68106.0,68105.0,0.0060913]
[1717345891392,0.002,68106.0,68105.0,0.0553913]
[1717345891708,0.002,68106.0,68105.0,0.28395395]
[1717345892331,0.00182329,68106.0,68105.0,0.28395395]
[1717345893327,0.00182329,68106.0,68105.0,0.23465395]
[1717345894846,0.00182329,68106.0,68105.0,0.23465136]
[1717345894981,0.00470403,68106.0,68105.0,0.23465136]
[1717345895347,0.24080403,68106.0,68105.0,0.23465136]
[1717345895934,0.24080403,68106.0,68105.0,0.1584664]
[1717345906376,0.24080403,68106.0,68105.0,0.0060913]
[1717345910808,0.38763303,68106.0,68105.0,0.0060913]
[1717345913444,0.38763303,68106.0,68105.0,0.15847426]
[1717345914748,0.38763303,68106.0,68105.0,0.0060913]
[1717345914954,0.43693303,68106.0,68105.0,0.0060913]
[1717345915585,0.58271094,68106.0,68105.0,0.0060913]
[1717345915785,0.58271094,68106.0,68105.0,0.001]
[1717345916009,0.37811274,68105.0,68104.0,1.0]
[1717345917858,0.37811274,68105.0,68104.0,1.001]
[1717345917859,0.39411274,68105.0,68104.0,1.001]
[1717345918535,0.39411274,68105.0,68104.0,1.00646717]
[1717345919198,0.41311274,68105.0,68104.0,1.00846717]
[1717345922089,0.035,68105.0,68104.0,1.17246717]
[1717345922520,0.035,68105.0,68104.0,1.32485374]
[1717345923746,0.146818,68112.0,68104.0,1.32185374]
[1717345924095,0.146818,68112.0,68106.0,0.0493]
[1717345924318,0.146818,68112.0,68107.0,0.15238657]
[1717345924533,0.00288074,68113.0,68108.0,0.15238657]
[1717345924741,0.14969274,68115.0,68109.0,0.15238657]
[1717345924941,0.002,68112.0,68110.0,0.15238657]
[1717345925148,0.002,68112.0,68111.0,0.15238657]
[1717345925532,0.1,68114.0,68111.0,0.157858]
[1717345925738,0.00888074,68113.0,68112.0,0.15238657]
[1717345925983,0.00888074,68113.0,68112.0,0.15785706]
[1717345926195,0.23379474,68113.0,68112.0,0.15785706]
[1717345926401,0.23379474,68113.0,68112.0,0.15238657]
[1717345926606,0.23379474,68113.0,68104.0,1.0]
[1717345926607,0.00288074,68105.0,68104.0,1.0]
[1717345926812,0.00288074,68105.0,68104.0,1.15786055]
[1717345927184,0.146821,68110.0,68104.0,1.15786055]
[1717345927185,0.00288074,68107.0,68104.0,1.15786055]
[1717345927387,0.00288074,68107.0,68105.0,0.15238254]
[1717345927653,0.146821,68110.0,68104.0,1.0]
[1717345927654,0.00288074,68106.0,68104.0,1.0]
[1717345927839,0.00288074,68105.0,68104.0,1.004]
[1717345927982,0.00288074,68105.0,68104.0,1.15638191]
[1717345928179,0.00288074,68105.0,68104.0,1.15238191]
[1717345928459,0.00288074,68105.0,68104.0,1.15938191]
[1717345929165,0.00288074,68105.0,68104.0,1.15238191]
[1717345930132,0.00288074,68105.0,68104.0,1.15638191]
[1717345930661,0.14971274,68105.0,68104.0,1.15938191]
[1717345930872,0.14971274,68105.0,68104.0,1.16885208]
[1717345931812,0.14971274,68105.0,68104.0,1.16185208]
[1717345932016,0.14971274,68105.0,68104.0,1.15785208]
[1717345932258,0.16571274,68105.0,68104.0,1.00647017]
[1717345933676,0.18571274,68105.0,68104.0,1.00847017]
[1717345935598,0.18571274,68105.0,68104.0,1.16085758]
[1717345937048,0.18571274,68105.0,68104.0,1.00847017]
[1717345937454,0.18571274,68105.0,68104.0,1.1608557]
[1717345941217,0.18571274,68105.0,68104.0,1.00847017]
[1717345942024,0.18571274,68105.0,68104.0,1.00827017]
[1717345942498,0.18571274,68105.0,68104.0,1.16065922]
[1717345944583,0.41171274,68105.0,68104.0,1.16065922]
[1717345945034,0.41171274,68105.0,68104.0,1.16065814]
[1717345950293,0.41171274,68105.0,68104.0,1.00827017]
[1717345951050,0.41171274,68105.0,68104.0,1.16066022]
[1717345957659,0.55749065,68105.0,68104.0,1.16066022]
[1717345957897,0.70679065,68105.0,68104.0,1.0028]
[1717345958226,0.70679065,68105.0,68104.0,1.00826491]
[1717345959035,1.00045465,68105.0,68104.0,1.00826491]
[1717345959235,1.00045465,68105.0,68104.0,1.0028]
[1717345959437,1.00045465,68105.0,68104.0,1.00827831]
[1717345959664,1.06922998,68105.0,68104.0,1.00827831]
[1717345960223,1.06922998,68105.0,68104.0,1.00727831]
[1717345960224,1.05322998,68105.0,68104.0,1.00727831]
[1717345960596,1.05622998,68105.0,68104.0,1.00827831]
[1717345960895,1.08217455,68105.0,68104.0,1.01127831]
[1717345963517,0.67049065,68105.0,68104.0,1.01127831]
[1717345963839,0.71979065,68105.0,68104.0,1.01127831]
[1717345964091,0.71979065,68105.0,68104.0,1.0058]
[1717345964778,0.71979065,68105.0,68104.0,1.01127848]
[1717345970626,1.01345465,68105.0,68104.0,1.01127848]
[1717345970842,1.01345465,68105.0,68104.0,1.0058]
[1717345971270,1.01345465,68105.0,68104.0,1.01128594]
[1717345975078,1.08191458,68105.0,68104.0,1.01128594]
[1717345980887,1.37557858,68105.0,68104.0,1.01128594]
[1717345981043,1.47557858,68105.0,68104.0,1.01128594]
[1717345981251,1.51953429,68105.0,68104.0,1.01128594]
[1717345981503,1.51953429,68105.0,68104.0,1.0058]
[1717345981504,1.47557858,68105.0,68104.0,1.0058]
[1717345981680,1.51950299,68105.0,68104.0,1.01128752]
[1717345982089,1.47557858,68105.0,68104.0,1.01128752]
[1717345982290,1.47557858,68105.0,68104.0,1.0058]
[1717345982495,1.47557858,68105.0,68104.0,1.01129644]
[1717345982702,1.51950299,68105.0,68104.0,1.01129644]
[1717345983084,1.47557858,68105.0,68104.0,1.01129644]
[1717345983500,1.37557858,68105.0,68104.0,1.01129644]
[1717345984538,1.37557858,68105.0,68104.0,1.0058]
[1717345984958,1.37557858,68105.0,68104.0,1.01129644]
[1717345992065,1.44349306,68105.0,68104.0,1.01129644]
[1717345992254,1.41950524,68105.0,68104.0,1.01129644]
[1717345992421,1.41950524,68105.0,68104.0,1.0058]
[1717345992422,1.39956672,68105.0,68104.0,1.0058]
[1717345992622,1.37557858,68105.0,68104.0,1.0058]
[1717345992868,1.47557858,68105.0,68104.0,1.0113128]
[1717345993051,1.54349367,68105.0,68104.0,1.0113128]
[1717345993672,1.51950524,68105.0,68104.0,1.0113128]
[1717345994026,1.44349354,68105.0,68104.0,1.0113128]
[1717345994257,1.41950524,68105.0,68104.0,1.0113128]
[1717345995046,1.44349366,68105.0,68104.0,1.0113128]
[1717345995422,1.37503373,68105.0,68104.0,1.0113128]
[1717345995623,1.41835716,68105.0,68104.0,1.0113128]
[1717345997289,1.41835716,68105.0,68104.0,1.0058]
[1717345997696,1.41835716,68105.0,68104.0,1.01131069]
[1717346000320,1.3744305,68105.0,68104.0,1.01131069]
[1717346000644,1.4744305,68105.0,68104.0,1.0058]
[1717346000849,1.49841879,68105.0,68104.0,1.0058]
[1717346001057,1.46432091,68105.0,68104.0,1.01130887]
[1717346001493,1.39841879,68105.0,68104.0,1.01130887]
[1717346004645,1.48627212,68105.0,68104.0,1.01130887]
[1717346005300,1.58627212,68105.0,68104.0,1.01130887]
[1717346005509,1.39841879,68105.0,68104.0,1.01130887]
[1717346005726,1.49841879,68105.0,68104.0,1.01130887]
[1717346006173,1.58627212,68105.0,68104.0,1.01130887]
[1717346008231,1.51896027,68105.0,68104.0,1.01130887]
[1717346008443,1.58522873,68105.0,68104.0,1.01130887]
[1717346010094,1.49733147,68105.0,68104.0,1.01130887]
[1717346010295,1.58522873,68105.0,68104.0,1.01130887]
[1717346013593,1.58547869,68105.0,68104.0,1.01130887]
[1717346014188,1.53617869,68105.0,68104.0,1.01130887]
[1717346014389,1.58547869,68105.0,68104.0,1.01130887]
[1717346014590,1.58548244,68105.0,68104.0,1.01130887]
[1717346014847,1.39756005,68105.0,68104.0,1.01130887]
[1717346015030,1.58546767,68105.0,68104.0,1.01130887]
[1717346016650,1.58547572,68105.0,68104.0,1.01130887]
[1717346017039,1.49756005,68105.0,68104.0,1.01130887]
[1717346019444,1.60745836,68105.0,68104.0,1.01130887]
[1717346019641,1.50745836,68105.0,68104.0,1.01130887]
[1717346020089,1.39756005,68105.0,68104.0,1.01130887]
[1717346022322,1.50751192,68105.0,68104.0,1.01130887]
[1717346023035,1.35671192,68105.0,68104.0,1.01130887]
[1717346023485,1.35671192,68105.0,68104.0,1.0058]
[1717346023692,1.33473857,68105.0,68104.0,1.0058]
[1717346023903,1.33473857,68105.0,68104.0,1.01127185]
[1717346024345,1.24676005,68105.0,68104.0,1.01127185]
[1717346025338,1.35671192,68105.0,68104.0,1.01127185]
[1717346025540,0.93854792,68105.0,68104.0,1.01127185]
[1717346025751,0.62294037,68105.0,68104.0,1.20877185]
[1717346025958,0.2862734,68105.0,68104.0,1.20877185]
[1717346026165,0.195832,68105.0,68104.0,1.20877185]
[1717346026388,0.049,68105.0,68104.0,1.20877185]
[1717346026764,0.00288074,68106.0,68104.0,1.1576586]
[1717346026918,0.00288074,68106.0,68105.0,0.1975]
[1717346027127,0.00288074,68106.0,68105.0,0.34988675]
[1717346027356,0.00288074,68106.0,68105.0,0.2029734]
[1717346027778,0.29548765,68106.0,68105.0,0.3553619]
[1717346027944,0.29548765,68106.0,68105.0,0.2029734]
[1717346029059,0.34548765,68106.0,68105.0,0.2029734]
[1717346040789,0.05,68106.0,68105.0,0.2029734]
[1717346047975,0.05288074,68106.0,68105.0,0.2029734]
[1717346048540,0.05,68106.0,68105.0,0.2029734]
[1717346049159,0.05,68106.0,68105.0,0.35536038]
[1717346055300,0.05,68106.0,68105.0,0.43155178]
[1717346060005,0.05,68106.0,68105.0,0.43155044]
[1717346065027,0.05,68106.0,68105.0,0.35536038]
[1717346065196,0.05,68106.0,68105.0,0.43154877]
[1717346068864,0.027,68106.0,68105.0,0.43154877]
[1717346069526,0.1,68115.0,68106.0,0.0335]
[1717346069738,0.1,68115.0,68107.0,0.22857537]
[1717346069944,0.1,68115.0,68108.0,0.22857537]
[1717346070151,0.1,68115.0,68109.0,0.30958698]
[1717346070357,0.1,68115.0,68110.0,0.15238698]
[1717346070580,0.1,68115.0,68111.0,0.15238698]
[1717346070786,0.1,68115.0,68112.0,0.15238698]
[1717346070996,0.113,68115.0,68113.0,0.15238698]
[1717346071209,0.113,68115.0,68114.0,0.15238698]
[1717346071442,0.118,68115.0,68114.0,0.15238698]
[1717346071670,0.118,68115.0,68114.0,0.15744984]
[1717346071898,0.142,68115.0,68114.0,0.15744984]
[1717346073157,0.1,68115.0,68114.0,0.15744984]
[1717346073360,0.131,68115.0,68114.0,0.15744984]
[1717346073981,0.16988074,68115.0,68114.0,0.15744984]
[1717346074196,0.20588074,68115.0,68114.0,0.15844984]
[1717346074623,0.203,68115.0,68114.0,0.15844984]
[1717346078427,0.203,68115.0,68114.0,0.00606286]
[1717346078663,0.203,68115.0,68114.0,0.15842873]
[1717346078870,0.203,68115.0,68114.0,0.15336587]
[1717346079075,0.203,68115.0,68114.0,0.15770546]
[1717346080565,0.203,68115.0,68114.0,0.12770546]
[1717346081380,0.103,68115.0,68114.0,0.12770546]
[1717346082022,0.103,68115.0,68114.0,0.31840546]
[1717346082640,0.103,68115.0,68114.0,0.3945849]
[1717346082853,0.00943801,68118.0,68114.0,0.3945849]
[1717346083070,0.00943801,68118.0,68114.0,0.19503959]
[1717346083286,0.014,68115.0,68114.0,0.19603959]
[1717346083470,0.014,68115.0,68114.0,0.27221862]
[1717346083705,0.017,68115.0,68114.0,0.27121862]
[1717346084104,0.017,68115.0,68114.0,0.27521862]
[1717346084589,0.01143801,68118.0,68114.0,0.27121862]
[1717346084590,0.00943801,68118.0,68114.0,0.27121862]
[1717346084786,0.00943801,68118.0,68115.0,0.07617903]
[1717346084968,0.00943801,68118.0,68116.0,0.07617903]
[1717346085287,0.00943801,68118.0,68116.0,0.00431954]
[1717346085677,0.00943801,68118.0,68114.0,0.1947]
[1717346085893,0.00943801,68118.0,68117.0,0.0043188]
[1717346086025,0.00943801,68118.0,68114.0,0.1917]
[1717346086231,0.00943801,68118.0,68117.0,0.0043188]
[1717346086437,0.01843801,68118.0,68116.0,0.001]
[1717346086642,0.01843801,68118.0,68117.0,0.0043188]
[1717346086943,0.00943801,68118.0,68117.0,0.0043188]
[1717346087237,0.01843801,68118.0,68117.0,0.0053188]
[1717346087400,0.01843801,68118.0,68117.0,0.001]
[1717346087552,0.01843801,68118.0,68117.0,0.0053188]
[1717346087750,0.01843801,68118.0,68117.0,0.001]
[1717346087957,0.01843801,68118.0,68117.0,0.0053188]
[1717346088173,0.03043801,68118.0,68117.0,0.002]
[1717346088426,0.03043801,68118.0,68117.0,0.0063188]
[1717346088616,0.03043801,68118.0,68117.0,0.002]
[1717346088795,0.03043801,68118.0,68117.0,0.0063188]
[1717346089001,0.03043801,68118.0,68117.0,0.002]
[1717346089173,0.03043801,68118.0,68117.0,0.0063188]
[1717346089373,0.03043801,68118.0,68117.0,0.002]
[1717346089600,0.03043801,68118.0,68117.0,0.0063188]
[1717346090453,0.03043801,68118.0,68117.0,0.15867652]
[1717346093177,0.03043801,68118.0,68117.0,0.15867707]
[1717346094384,0.03043801,68118.0,68117.0,0.15847707]
[1717346098433,0.03043801,68118.0,68117.0,0.23465163]
[1717346106313,0.03043801,68118.0,68117.0,0.41905163]